bitfinex/quotes_SOLUSD_20220210
["timestamp","ask_amount","ask_price","bid_price","bid_amount"]
[1644522952961,4.581,109.2,109.09,24.7885]
[1644522953163,1.29970422,109.18,109.09,24.7885]
[1644522953364,1.29970422,109.17,109.07,10.79]
[1644522953563,5.88170422,109.16,109.06,53.3154]
[1644522953762,9.54813125,109.15,109.07,41.98681827]
[1644522953962,1.29970422,109.15,109.07,41.98681827]
[1644522954162,7.54970422,109.15,109.07,41.98681827]
[1644522954364,7.54970422,109.15,109.07,55.73761827]
[1644522954567,1.54970422,109.15,109.07,55.73761827]
[1644522954965,0.25,109.15,109.07,55.98761827]
[1644522955165,0.25,109.15,109.07,55.73761827]
[1644522955472,1.94440794,109.14,109.07,55.73761827]
[1644522955867,0.25,109.14,109.07,55.73761827]
[1644522956765,6.13170422,109.15,109.07,55.73761827]
[1644522956965,6.13170422,109.15,109.07,55.98761827]
[1644522957166,11.3093725,109.15,109.07,55.73761827]
[1644522957366,4.832,109.15,109.07,55.73761827]
[1644522957665,5.88170422,109.15,109.07,68.55501061]
[1644522957867,1.29970422,109.16,109.07,74.55501061]
[1644522958466,1.29970422,109.17,109.08,4.582]
[1644522958765,13.7476,109.21,109.11,13.7466]
[1644522958766,1.29970422,109.18,109.11,13.7466]
[1644522958966,1.32974453,109.18,109.11,13.7466]
[1644522959167,1.29970422,109.18,109.11,18.5776]
[1644522959365,1.29970422,109.18,109.11,19.9966]
[1644522959567,1.29970422,109.18,109.12,10.79]
[1644522959770,1.29970422,109.19,109.13,47.84659168]
[1644522959967,1.29970422,109.18,109.13,47.84659168]
[1644522960165,73.92033449,109.22,109.13,47.84659168]
[1644522960166,1.29970422,109.19,109.13,47.84659168]
[1644522960368,1.29970422,109.19,109.13,61.59079168]
[1644522960568,1.29970422,109.19,109.13,66.42079168]
[1644522961265,0.03004031,109.21,109.13,72.42079168]
[1644522961266,1.29970422,109.2,109.13,72.42079168]
[1644522961666,1.29970422,109.19,109.13,67.84079168]
[1644522961868,1.29970422,109.19,109.13,6.0]
[1644522962069,7.29970422,109.19,109.11,13.746]
[1644522962269,7.54970422,109.19,109.11,13.746]
[1644522962468,1.29970422,109.18,109.09,4.58]
[1644522962670,102.0,109.16,109.05,26.75509234]
[1644522962870,1.29970422,109.15,109.02,9.591]
[1644522963075,20.17070867,109.14,109.03,37.78537684]
[1644522963269,1.29970422,109.13,109.02,9.591]
[1644522963471,12.08970422,109.13,109.02,9.591]
[1644522963672,13.7598,109.1,109.02,9.591]
[1644522963869,1.29970422,109.11,109.02,9.591]
[1644522964070,0.25,109.1,109.02,23.3495]
[1644522964269,0.25,109.1,109.03,35.13186825]
[1644522965270,6.25,109.11,109.04,13.7556]
[1644522965469,6.0,109.11,109.04,13.7556]
[1644522965672,6.0,109.12,109.04,20.0056]
[1644522965869,7.29970422,109.13,109.04,30.7956]
[1644522966069,1.29970422,109.14,109.06,48.20371408]
[1644522966271,1.29970422,109.14,109.08,48.80439533]
[1644522967269,1.29970422,109.14,109.07,4.582]
[1644522967473,1.29970422,109.14,109.07,0.25]
[1644522967973,1.29970422,109.14,109.08,13.75]
[1644522968370,1.29970422,109.14,109.08,53.28638785]
[1644522969573,1.29970422,109.13,109.08,53.28638785]
[1644522969797,7.54970422,109.13,109.08,13.75]
[1644522970074,7.54970422,109.13,109.06,13.7526]
[1644522970475,9.78092576,109.13,109.02,24.964]
[1644522970676,1.29970422,109.12,109.03,44.24341192]
[1644522970876,1.54970422,109.12,109.03,44.24341192]
[1644522971077,7.54970422,109.12,109.03,44.24341192]
[1644522971275,7.54970422,109.12,109.04,13.7551]
[1644522971276,7.62600218,109.11,109.04,13.7551]
[1644522971476,8.9257064,109.11,109.03,44.24341192]
[1644522971674,17.40692794,109.11,109.03,44.24341192]
[1644522971876,1.29970422,109.1,109.03,44.24341192]
[1644522972277,6.25,109.1,109.03,44.24341192]
[1644522972479,0.25,109.1,109.03,58.00061192]
[1644522972677,0.25,109.1,109.03,58.25061192]
[1644522973081,1.29970422,109.11,109.04,4.583]
[1644522973280,1.29970422,109.12,109.04,21.623]
[1644522973480,1.29970422,109.13,109.04,21.623]
[1644522973677,1.29970422,109.13,109.06,13.7524]
[1644522973878,1.29970422,109.13,109.07,4.583]
[1644522974080,1.29970422,109.14,109.07,4.583]
[1644522974279,1.29970422,109.15,109.08,46.73728237]
[1644522974479,1.32974453,109.15,109.06,12.56058101]
[1644522974679,1.29970422,109.14,109.05,10.79]
[1644522974880,4.583,109.13,109.03,47.6571]
[1644522975079,5.88270422,109.13,109.04,4.583]
[1644522975280,0.25,109.13,109.04,15.373]
[1644522975482,0.25,109.13,109.05,47.13488642]
[1644522975680,1.54970422,109.13,109.05,47.13488642]
[1644522975883,1.54970422,109.13,109.05,47.38488642]
[1644522976081,1.54970422,109.13,109.06,4.583]
[1644522976280,0.25,109.13,109.06,4.833]
[1644522976479,1.54970422,109.13,109.06,4.833]
[1644522976680,1.29970422,109.13,109.06,4.833]
[1644522976884,0.25,109.13,109.07,35.8284914]
[1644522977082,1.29970422,109.14,109.07,42.0784914]
[1644522977318,1.54970422,109.14,109.08,4.582]
[1644522977485,1.54970422,109.14,109.07,52.8684914]
[1644522978185,21.14228961,109.13,109.08,13.7493]
[1644522978387,22.69199383,109.13,109.04,15.372]
[1644522978584,1.29970422,109.12,109.04,4.582]
[1644522978786,1.29970422,109.12,109.04,10.582]
[1644522978787,1.54970422,109.12,109.04,10.582]
[1644522978986,0.25,109.12,109.04,4.582]
[1644522979184,1.54970422,109.12,109.04,10.582]
[1644522979392,1.29970422,109.12,109.06,13.753]
[1644522979587,1.29970422,109.13,109.07,38.21959618]
[1644522979789,0.25,109.12,109.07,38.46959618]
[1644522979987,0.25,109.12,109.07,44.46959618]
[1644522980186,0.25,109.12,109.07,38.46959618]
[1644522980493,0.25,109.12,109.08,13.7495]
[1644522980691,1.29970422,109.13,109.08,13.7495]
[1644522980896,1.54970422,109.13,109.08,13.7495]
[1644522981394,1.29970422,109.12,109.08,13.7495]
[1644522981596,1.29970422,109.12,109.06,13.7529]
[1644522981797,1.29970422,109.1,109.03,47.6571]
[1644522981997,1.29970422,109.1,109.03,4.583]
[1644522982197,0.25,109.1,109.03,4.833]
[1644522982398,0.25,109.1,109.04,4.583]
[1644522982596,1.29970422,109.11,109.05,59.43606703]
[1644522983401,1.29970422,109.11,109.05,59.68606703]
[1644522984200,1.29970422,109.12,109.05,59.68606703]
[1644522984597,1.29970422,109.11,109.05,59.68606703]
[1644522984816,1.29970422,109.11,109.05,59.43606703]
[1644522985218,1.29970422,109.11,109.05,59.68606703]
[1644522986020,1.54970422,109.11,109.05,59.68606703]
[1644522986520,1.54970422,109.11,109.05,59.43606703]
[1644522986920,1.29970422,109.1,109.05,59.43606703]
[1644522987120,1.29970422,109.1,109.05,13.7552]
[1644522987326,1.54970422,109.1,109.05,13.7552]
[1644522987528,1.54970422,109.1,109.04,18.3397]
[1644522987722,7.54970422,109.1,109.04,13.7567]
[1644522987928,1.29970422,109.09,109.04,13.7567]
[1644522988322,1.29970422,109.09,109.04,53.37676865]
[1644522988525,0.25,109.09,109.04,53.37676865]
[1644522989523,1.54970422,109.09,109.04,53.37676865]
[1644522991430,1.29970422,109.09,109.04,53.37676865]
[1644522991627,1.29970422,109.09,109.05,10.79]
[1644522991830,1.29970422,109.1,109.06,13.7498]
[1644522992129,1.29970422,109.11,109.07,10.79]
[1644522992327,1.29970422,109.11,109.08,46.48826892]
[1644522992529,1.29970422,109.11,109.09,0.04527072]
[1644522992927,1.29970422,109.13,109.1,13.7488]
[1644522993128,1.29970422,109.13,109.1,50.87798658]
[1644522993426,1.54970422,109.13,109.1,13.7488]
[1644522993631,1.29970422,109.12,109.1,13.7488]
[1644522993827,4.58190419,109.12,109.1,13.7488]
[1644522994031,4.58190419,109.12,109.11,0.04526243]
[1644522994229,4.58190419,109.12,109.07,51.92481792]
[1644522994427,4.58190419,109.12,109.07,41.13481792]
[1644522994929,4.58190419,109.12,109.05,70.7505]
[1644522995127,1.29970422,109.11,109.07,13.7523]
[1644522995329,1.54970422,109.11,109.05,10.79]
[1644522995534,1.29970422,109.1,109.03,50.4304]
[1644522995828,1.54970422,109.1,109.04,41.41069092]
[1644522996236,1.54970422,109.1,109.03,50.4304]
[1644522996429,1.54970422,109.1,109.01,56.6474]
[1644522996629,1.29970422,109.09,109.01,4.583]
[1644522996831,1.29970422,109.09,109.0,33.3211]
[1644522996832,1.29970422,109.08,109.0,33.3211]
[1644522997029,1.29970422,109.08,108.99,15.375]
[1644522997229,1.54970422,109.08,109.0,35.22461583]
[1644522997430,1.54970422,109.08,109.02,13.7595]
[1644522997631,7.54970422,109.08,109.02,13.7595]
[1644522998232,0.25,109.08,109.02,13.7595]
[1644522998433,0.25,109.08,109.02,51.17693296]
[1644522998630,1.54970422,109.09,109.02,51.17693296]
[1644522999030,7.54970422,109.09,109.02,51.17693296]
[1644522999731,1.73915302,109.08,109.02,51.17693296]
[1644522999932,1.73915302,109.08,109.02,13.7595]
[1644523000135,7.54970422,109.08,109.02,13.7595]
[1644523000334,1.54970422,109.08,109.02,13.7595]
[1644523000734,1.29970422,109.09,109.02,14.0095]
[1644523001136,1.29970422,109.09,109.03,43.28750865]
[1644523001337,1.29970422,109.1,109.05,13.7547]
[1644523001837,1.29970422,109.12,109.05,23.7617]
[1644523002033,1.29970422,109.12,109.06,4.583]
[1644523002234,1.29970422,109.12,109.07,39.86976291]
[1644523002534,1.29970422,109.13,109.09,39.89730638]
[1644523002737,1.29970422,109.14,109.09,40.14730638]
[1644523003137,1.29970422,109.14,109.09,39.89730638]
[1644523003737,1.54970422,109.14,109.09,39.89730638]
[1644523004537,7.54970422,109.14,109.09,39.89730638]
[1644523004738,7.54970422,109.14,109.09,53.64470638]
[1644523005243,1.54970422,109.14,109.09,59.89470638]
[1644523005441,1.54970422,109.14,109.09,64.47670638]
[1644523005640,0.25,109.14,109.09,64.47670638]
[1644523005841,1.54970422,109.15,109.09,64.47670638]
[1644523006045,1.54970422,109.15,109.09,59.89470638]
[1644523006444,1.29970422,109.16,109.09,70.68470638]
[1644523006650,1.29970422,109.16,109.09,72.45528739]
[1644523006847,1.30563292,109.18,109.11,13.7414]
[1644523007050,4.61204031,109.19,109.12,15.371]
[1644523007051,5.88763292,109.19,109.12,15.371]
[1644523007247,4.582,109.19,109.12,23.39158101]
[1644523007447,4.582,109.19,109.13,1.77058101]
[1644523007648,1.30563292,109.19,109.14,64.18684128]
[1644523007848,1.30563292,109.21,109.14,70.43684128]
[1644523008048,1.33567323,109.21,109.15,1.77058101]
[1644523008247,1.55563292,109.21,109.16,68.79799439]
[1644523008647,0.25,109.21,109.16,68.79799439]
[1644523008846,0.25,109.21,109.16,69.04799439]
[1644523009251,1.55563292,109.22,109.16,75.04799439]
[1644523009553,1.30563292,109.22,109.16,75.04799439]
[1644523009953,1.30563292,109.23,109.16,75.04799439]
[1644523010454,1.30563292,109.23,109.16,81.3965754]
[1644523010658,1.33567323,109.25,109.16,81.3965754]
[1644523010856,7.30563292,109.25,109.16,81.3965754]
[1644523011286,4.60804031,109.26,109.17,139.0]
[1644523011485,115.82432289,109.31,109.17,139.0]
[1644523011486,1.29900235,109.27,109.18,15.368]
[1644523011691,1.29900235,109.27,109.2,13.7274]
[1644523011887,0.03004031,109.28,109.21,15.367]
[1644523012084,0.03004031,109.29,109.22,127.36520278]
[1644523012284,0.03004031,109.31,109.23,15.365]
[1644523012485,0.03004031,109.32,109.24,43.8025047]
[1644523012685,6.03004031,109.34,109.26,13.7259]
[1644523012886,0.03004031,109.33,109.26,13.7259]
[1644523013084,6.0,109.34,109.26,30.7659]
[1644523013285,6.0,109.34,109.26,32.53648101]
[1644523013486,6.0,109.34,109.27,34.47215745]
[1644523013687,169.9817,109.35,109.28,13.7245]
[1644523013887,116.474,109.35,109.28,13.7245]
[1644523014090,111.4,109.35,109.28,38.9105]
[1644523014294,24.81064031,109.37,109.29,1.77058101]
[1644523014494,29.38364031,109.37,109.29,12.56058101]
[1644523014694,23.83329188,109.36,109.29,65.46338917]
[1644523014888,4.573,109.35,109.29,65.46338917]
[1644523015089,4.573,109.35,109.26,24.5158]
[1644523015289,10.85304031,109.35,109.26,10.79]
[1644523015491,122.723,109.35,109.26,10.79]
[1644523015897,10.823,109.35,109.26,11.04]
[1644523016092,10.823,109.35,109.27,43.31366949]
[1644523016291,6.0,109.35,109.27,74.07856949]
[1644523016690,6.03004031,109.37,109.28,4.574]
[1644523016891,0.03004031,109.36,109.29,10.79]
[1644523017095,4.60304031,109.38,109.29,10.79]
[1644523017291,8.24721295,109.38,109.3,35.74640846]
[1644523017491,4.572,109.37,109.3,35.74640846]
[1644523017790,6.0,109.37,109.3,35.74640846]
[1644523018393,8.48122154,109.37,109.27,11.04]
[1644523018596,4.573,109.36,109.28,0.25]
[1644523018792,10.823,109.36,109.27,0.25]
[1644523019194,10.823,109.36,109.27,11.04]
[1644523019394,4.823,109.36,109.27,63.65687997]
[1644523019598,4.573,109.36,109.27,77.38147997]
[1644523019794,4.573,109.36,109.28,4.573]
[1644523019993,0.03004031,109.38,109.29,10.79]
[1644523020194,6.03004031,109.39,109.3,4.573]
[1644523020393,6.03004031,109.39,109.31,10.79]
[1644523020394,4.572,109.39,109.31,10.79]
[1644523020595,29.696308,109.38,109.3,53.86208066]
[1644523020795,35.696308,109.38,109.3,43.07208066]
[1644523020994,35.946308,109.38,109.28,13.7235]
[1644523021194,6.80422154,109.37,109.26,10.79]
[1644523021395,6.80422154,109.37,109.25,10.79]
[1644523021396,13.7292,109.35,109.25,10.79]
[1644523021595,4.574,109.34,109.22,10.79]
[1644523021798,13.08526185,109.34,109.22,10.79]
[1644523022000,0.42499414,109.33,109.23,46.21181659]
[1644523022203,2.23122154,109.33,109.23,46.21181659]
[1644523022399,6.03004031,109.33,109.23,46.46181659]
[1644523022598,6.28004031,109.33,109.23,52.46181659]
[1644523022802,6.28004031,109.33,109.24,13.7283]
[1644523023000,0.25,109.33,109.23,52.46181659]
[1644523023206,4.575,109.32,109.23,46.21181659]
[1644523023602,2.23122154,109.31,109.23,46.21181659]
[1644523023802,4.575,109.3,109.23,46.21181659]
[1644523024203,10.825,109.3,109.23,46.21181659]
[1644523025004,6.25,109.3,109.23,46.21181659]
[1644523025404,0.25,109.3,109.23,46.21181659]
[1644523025606,6.25,109.3,109.23,46.21181659]
[1644523026306,10.825,109.3,109.23,46.21181659]
[1644523026506,10.825,109.3,109.23,46.46181659]
[1644523026705,6.25,109.3,109.23,46.46181659]
[1644523027108,0.25,109.3,109.23,46.46181659]
[1644523027310,0.03004031,109.32,109.23,52.46181659]
[1644523027506,0.03004031,109.32,109.23,78.7524976]
[1644523027709,0.03004031,109.32,109.23,170.6224976]
[1644523027907,4.825,109.35,109.23,170.6224976]
[1644523027908,0.03004031,109.34,109.23,170.6224976]
[1644523028207,0.03004031,109.34,109.23,208.88111487]
[1644523028813,0.03004031,109.34,109.23,117.01111487]
[1644523029211,4.575,109.37,109.24,4.575]
[1644523029414,0.03004031,109.33,109.27,13.7251]
[1644523029612,0.03004031,109.36,109.28,43.14459171]
[1644523029835,4.573,109.36,109.28,43.39459171]
[1644523030014,4.60304031,109.36,109.28,43.39459171]
[1644523030213,10.85304031,109.36,109.28,43.39459171]
[1644523030415,10.85304031,109.36,109.28,43.14459171]
[1644523030612,6.25,109.36,109.28,43.14459171]
[1644523030815,0.28004031,109.36,109.28,43.14459171]
[1644523031014,8.46619129,109.36,109.28,43.14459171]
[1644523031318,2.23122154,109.35,109.25,4.573]
[1644523031516,2.23122154,109.35,109.21,10.79]
[1644523031517,0.03004031,109.34,109.21,10.79]
[1644523031714,111.9,109.32,109.2,10.79]
[1644523031915,4.60504031,109.31,109.2,10.79]
[1644523032116,0.03004031,109.3,109.21,37.83959674]
[1644523032718,13.76474031,109.3,109.21,51.57229674]
[1644523032916,4.575,109.29,109.21,51.57229674]
[1644523033315,10.825,109.29,109.21,51.57229674]
[1644523034119,6.25,109.29,109.21,51.57229674]
[1644523034317,0.25,109.29,109.21,51.82229674]
[1644523034519,0.25,109.29,109.21,51.57229674]
[1644523034520,6.25,109.29,109.21,51.57229674]
[1644523034717,6.0,109.29,109.22,10.79]
[1644523034921,6.25,109.29,109.24,13.7288]
[1644523035171,0.25,109.29,109.25,36.46703097]
[1644523035318,6.25,109.29,109.25,36.46703097]
[1644523035818,0.25,109.29,109.25,36.46703097]
[1644523036018,6.25,109.29,109.25,36.46703097]
[1644523036219,7.21389994,109.32,109.25,36.46703097]
[1644523036417,6.0,109.31,109.25,36.46703097]
[1644523036618,8.60885963,109.31,109.25,36.46703097]
[1644523037642,8.85885963,109.31,109.25,36.46703097]
[1644523038042,13.43385963,109.31,109.25,36.46703097]
[1644523038243,34.01611647,109.31,109.25,36.46703097]
[1644523038445,29.44111647,109.31,109.21,45.7642]
[1644523038645,2.60885963,109.29,109.2,10.79]
[1644523038849,7.43385963,109.29,109.2,11.04]
[1644523039264,2.85885963,109.29,109.21,15.50388101]
[1644523039548,0.25,109.29,109.21,15.50388101]
[1644523039745,0.25,109.29,109.21,21.75388101]
[1644523039947,2.88889994,109.3,109.22,10.79]
[1644523040148,2.85885963,109.3,109.22,10.79]
[1644523040349,6.45641873,109.29,109.23,44.78446271]
[1644523040560,2.60885963,109.28,109.23,44.78446271]
[1644523041055,6.70641873,109.28,109.23,58.51506271]
[1644523041251,6.70641873,109.28,109.21,10.79]
[1644523041453,2.85885963,109.28,109.17,33.9192]
[1644523041650,11.03851595,109.27,109.2,6.0]
[1644523041850,11.03851595,109.27,109.17,16.79]
[1644523041851,6.46151595,109.26,109.17,16.79]
[1644523042349,6.46151595,109.26,109.18,44.29077673]
[1644523042350,12.71151595,109.26,109.18,44.29077673]
[1644523042751,6.25,109.26,109.18,44.54077673]
[1644523043152,0.25,109.26,109.18,44.54077673]
[1644523043352,6.0,109.26,109.18,44.54077673]
[1644523043553,6.0,109.26,109.18,48.86777673]
[1644523043851,20.81312919,109.25,109.18,62.60477673]
[1644523044057,25.39112919,109.25,109.18,44.29077673]
[1644523044251,34.24998882,109.25,109.18,44.29077673]
[1644523044451,8.85885963,109.25,109.18,44.29077673]
[1644523044756,4.578,109.24,109.18,44.29077673]
[1644523044952,8.85885963,109.25,109.18,44.29077673]
[1644523045652,6.25,109.25,109.18,44.29077673]
[1644523045851,13.9901,109.25,109.18,44.29077673]
[1644523046053,19.9901,109.25,109.18,44.29077673]
[1644523046251,22.59895963,109.25,109.18,44.29077673]
[1644523046956,8.85885963,109.25,109.18,44.54077673]
[1644523047153,6.25,109.25,109.18,46.31135774]
[1644523047354,0.25,109.25,109.18,52.31135774]
[1644523047554,0.25,109.25,109.19,10.79]
[1644523047758,6.28004031,109.27,109.2,40.35120911]
[1644523047955,6.28004031,109.27,109.2,51.14120911]
[1644523047956,2.85885963,109.27,109.2,51.14120911]
[1644523048152,13.43585963,109.27,109.2,51.14120911]
[1644523048355,7.43585963,109.27,109.2,51.14120911]
[1644523048652,7.43585963,109.27,109.2,64.87570911]
[1644523048852,6.46124477,109.26,109.2,64.87570911]
[1644523049057,2.60885963,109.26,109.2,64.87570911]
[1644523049254,0.25,109.26,109.2,64.87570911]
[1644523049555,0.25,109.26,109.2,51.14120911]
[1644523049752,7.32231759,109.26,109.2,51.14120911]
[1644523049954,14.50817722,109.26,109.2,51.14120911]
[1644523050157,20.50817722,109.26,109.2,10.79]
[1644523050357,3.85263113,109.25,109.17,10.79]
[1644523050555,3.88267144,109.25,109.16,10.79]
[1644523050771,0.03004031,109.25,109.17,107.38008101]
[1644523050957,2.63889994,109.27,109.18,10.79]
[1644523051155,6.45998181,109.28,109.18,10.79]
[1644523051358,0.03004031,109.27,109.18,17.04]
[1644523051557,24.71144079,109.27,109.18,50.91731114]
[1644523051757,3.17863981,109.25,109.18,40.12731114]
[1644523051958,4.578,109.24,109.18,40.12731114]
[1644523052158,4.578,109.24,109.17,13.7386]
[1644523052159,17.16893981,109.25,109.17,13.7386]
[1644523052360,17.16893981,109.25,109.13,10.79]
[1644523052361,6.80922154,109.24,109.13,10.79]
[1644523052757,15.66808117,109.24,109.13,10.79]
[1644523053156,20.45714782,109.23,109.14,42.88437951]
[1644523053356,4.579,109.22,109.14,42.88437951]
[1644523053556,4.579,109.22,109.15,13.7412]
[1644523053756,0.25,109.22,109.15,13.7412]
[1644523054360,0.25,109.22,109.16,41.79665484]
[1644523054758,78.41205315,109.25,109.16,41.79665484]
[1644523055057,15.97222154,109.24,109.14,13.7424]
[1644523055258,26.80022154,109.24,109.12,22.8974]
[1644523055566,2.23122154,109.23,109.11,24.655]
[1644523055758,4.58,109.22,109.11,24.655]
[1644523055957,7.36748708,109.22,109.12,34.76901308]
[1644523056156,4.58,109.21,109.12,34.76901308]
[1644523056361,10.83,109.21,109.12,34.76901308]
[1644523056760,24.5756,109.21,109.13,13.7447]
[1644523056961,19.9956,109.21,109.13,13.7447]
[1644523057159,19.9956,109.21,109.14,47.06992439]
[1644523057359,4.579,109.2,109.14,47.06992439]
[1644523057760,10.829,109.2,109.14,47.06992439]
[1644523058959,24.5748,109.2,109.14,47.06992439]
[1644523059158,19.9958,109.2,109.14,47.06992439]
[1644523059358,24.73307043,109.2,109.1,56.6056]
[1644523059560,24.73307043,109.2,109.1,56.8556]
[1644523059758,13.7458,109.2,109.1,56.6056]
[1644523059961,28.9479,109.22,109.11,137.681]
[1644523060159,38.1112,109.22,109.12,24.536]
[1644523060559,4.58,109.21,109.12,24.536]
[1644523060765,4.58,109.21,109.13,40.18216844]
[1644523061362,18.3246,109.21,109.13,53.92706844]
[1644523061766,4.55343339,109.2,109.13,53.92706844]
[1644523062366,18.29913339,109.2,109.13,13.7449]
[1644523063274,18.29913339,109.2,109.14,39.35158249]
[1644523063696,13.7457,109.2,109.14,39.35158249]
[1644523064400,38.1121,109.22,109.14,53.09518249]
[1644523064799,24.3679,109.22,109.14,53.09518249]
[1644523065904,28.9469,109.22,109.14,53.09518249]
[1644523066504,24.3679,109.22,109.14,53.09518249]
[1644523067503,24.3679,109.22,109.15,10.79]
[1644523067704,24.3679,109.22,109.17,13.7392]
[1644523067903,42.43324031,109.25,109.17,13.7392]
[1644523068303,28.69294031,109.25,109.18,44.92220581]
[1644523068506,24.0839,109.25,109.18,44.92220581]
[1644523068702,4.578,109.24,109.18,44.92220581]
[1644523069102,4.578,109.24,109.18,58.66060581]
[1644523069304,0.03004031,109.25,109.18,69.45060581]
[1644523069503,0.03004031,109.26,109.18,69.45060581]
[1644523069705,26.00135963,109.27,109.18,69.45060581]
[1644523070003,26.03139994,109.27,109.18,69.45060581]
[1644523070205,23.42254031,109.27,109.18,69.45060581]
[1644523070403,26.03139994,109.27,109.18,69.45060581]
[1644523071217,2.63889994,109.27,109.18,69.45060581]
[1644523071413,0.03004031,109.27,109.18,161.32060581]
[1644523071616,0.03004031,109.27,109.18,163.09118682]
[1644523072220,0.03004031,109.29,109.18,297.99118682]
[1644523072914,0.03004031,109.29,109.18,177.36684796]
[1644523073115,0.03004031,109.32,109.23,148.6238]
[1644523073413,0.03004031,109.32,109.24,55.86422576]
[1644523073617,4.60504031,109.34,109.26,35.603206]
[1644523073813,0.03004031,109.32,109.28,47.65306236]
[1644523074013,0.03004031,109.34,109.28,58.44306236]
[1644523074214,6.34999464,109.35,109.28,24.5127]
[1644523074419,4.573,109.34,109.28,24.5127]
[1644523075214,47.02226073,109.36,109.29,42.26279648]
[1644523075415,46.99222042,109.36,109.29,42.26279648]
[1644523076817,44.38336079,109.36,109.29,42.26279648]
[1644523077116,4.574,109.36,109.29,55.98749648]
[1644523077316,150.95919994,109.37,109.29,66.77749648]
[1644523077519,4.573,109.36,109.29,66.77749648]
[1644523077920,27.7147409,109.35,109.29,24.5147]
[1644523078219,18.32844031,109.36,109.29,24.5147]
[1644523078421,18.2984,109.36,109.29,13.7247]
[1644523079319,18.2984,109.36,109.3,43.63958917]
[1644523079522,13.7254,109.36,109.3,43.63958917]
[1644523079719,13.7254,109.36,109.29,13.7247]
[1644523079920,4.573,109.35,109.27,10.79]
[1644523080121,13.7276,109.34,109.26,10.79]
[1644523080321,4.574,109.33,109.24,10.79]
[1644523080520,4.60404031,109.33,109.24,10.79]
[1644523080720,0.70547169,109.34,109.25,44.32891934]
[1644523080922,4.574,109.33,109.25,44.32891934]
[1644523081124,0.03004031,109.36,109.26,24.5173]
[1644523082124,0.03004031,109.36,109.27,44.17622969]
[1644523082350,0.03004031,109.36,109.29,13.7241]
[1644523082627,161.785,109.37,109.29,13.7241]
[1644523083123,185.43067717,109.37,109.3,36.82483148]
[1644523083725,185.43067717,109.37,109.29,13.7241]
[1644523083925,185.46071748,109.37,109.28,13.726]
[1644523084129,199.59432167,109.37,109.26,10.79]
[1644523084324,13.7292,109.33,109.24,10.79]
[1644523084724,13.7292,109.33,109.25,44.34279411]
[1644523084925,18.3032,109.33,109.25,44.34279411]
[1644523085125,41.94887717,109.33,109.25,44.34279411]
[1644523085325,18.33324031,109.33,109.25,44.34279411]
[1644523085527,13.75924031,109.33,109.25,44.34279411]
[1644523085726,13.7292,109.33,109.25,44.34279411]
[1644523086727,13.7292,109.33,109.25,58.07229411]
[1644523087327,13.7276,109.34,109.25,58.07229411]
[1644523087527,0.03004031,109.35,109.25,68.86229411]
[1644523088031,6.88271594,109.36,109.25,68.86229411]
[1644523088229,0.03004031,109.34,109.25,68.86229411]
[1644523088428,13.7284,109.34,109.25,68.86229411]
[1644523088629,34.73576466,109.34,109.25,68.86229411]
[1644523089630,17.2969821,109.33,109.25,68.86229411]
[1644523089851,4.60404031,109.35,109.25,68.86229411]
[1644523090029,0.03004031,109.35,109.25,68.86229411]
[1644523090832,13.75734031,109.35,109.25,68.86229411]
[1644523091233,3.33933954,109.34,109.25,68.86229411]
[1644523091434,7.91333954,109.34,109.25,68.86229411]
[1644523092533,21.64063954,109.34,109.25,13.7295]
[1644523092733,21.64063954,109.34,109.23,24.1762]
[1644523092933,0.03004031,109.33,109.24,13.7314]
[1644523093135,4.575,109.32,109.24,13.7314]
[1644523093534,22.61971637,109.31,109.24,60.90202853]
[1644523094136,4.575,109.32,109.24,60.90202853]
[1644523094338,111.93004031,109.33,109.24,60.90202853]
[1644523094534,4.575,109.32,109.24,60.90202853]
[1644523094735,13.7314,109.31,109.24,60.90202853]
[1644523095035,111.93004031,109.33,109.24,60.90202853]
[1644523095436,6.90605722,109.32,109.24,60.90202853]
[1644523095838,20.63565722,109.32,109.23,24.5225]
[1644523096035,4.575,109.31,109.23,24.5225]
[1644523096236,0.03004031,109.31,109.23,24.5225]